[Event "*** SCC Grand Prix: Titled Tuesday Blitz"]
[Site "Chess.com"]
[Date "2020.10.13"]
[Round "2"]
[White "Ajedrez_con_German"]
[Black "nitpicker"]
[Result "1-0"]
[WhiteElo "2492"]
[BlackElo "2277"]
[TimeControl "180+1"]
[EndTime "10:18:55 PDT"]
[Termination "Ajedrez_con_German won by resignation"]

1. d4 {[%clk 0:03:00.9]} 1... Nf6 {[%clk 0:02:58.8]} 2. Bf4 {[%clk 0:03:00.9]}
2... b6 {[%clk 0:02:57.6]} 3. e3 {[%clk 0:03:00.8]} 3... Bb7 {[%clk 0:02:56.5]}
4. Nf3 {[%clk 0:03:01.1]} 4... e6 {[%clk 0:02:56.5]} 5. Be2 {[%clk 0:02:59.1]}
5... d6 {[%clk 0:02:55.8]} 6. O-O {[%clk 0:02:57.6]} 6... g6 {[%clk 0:02:55.3]}
7. c4 {[%clk 0:02:57.6]} 7... Nbd7 {[%clk 0:02:54.1]} 8. Nc3 {[%clk 0:02:58.1]}
8... Bg7 {[%clk 0:02:53.8]} 9. h3 {[%clk 0:02:58.6]} 9... O-O {[%clk 0:02:50.6]}
10. Rc1 {[%clk 0:02:58.9]} 10... Qe7 {[%clk 0:02:50.6]} 11. b4 {[%clk
0:02:53.9]} 11... e5 {[%clk 0:02:49.4]} 12. Bh2 {[%clk 0:02:53.8]} 12... a6
{[%clk 0:02:28.9]} 13. a4 {[%clk 0:02:33.6]} 13... a5 {[%clk 0:02:24.6]} 14. b5
{[%clk 0:02:33.2]} 14... Ne8 {[%clk 0:02:11.3]} 15. Qb3 {[%clk 0:02:15]} 15...
h6 {[%clk 0:02:08.2]} 16. Rfe1 {[%clk 0:02:06.9]} 16... Kh7 {[%clk 0:02:07.6]}
17. Qa3 {[%clk 0:02:01.4]} 17... f6 {[%clk 0:01:02.9]} 18. Nd5 {[%clk
0:01:49.3]} 18... Qf7 {[%clk 0:01:02.3]} 19. Qb3 {[%clk 0:01:31.3]} 19... f5
{[%clk 0:00:59.8]} 20. Bf1 {[%clk 0:01:07.9]} 20... Rc8 {[%clk 0:00:59.1]} 21.
Qa2 {[%clk 0:00:51.4]} 21... e4 {[%clk 0:00:50]} 22. Nd2 {[%clk 0:00:50.1]}
22... Nef6 {[%clk 0:00:49.4]} 23. Nxf6+ {[%clk 0:00:47.7]} 23... Bxf6 {[%clk
0:00:48.2]} 24. Nb3 {[%clk 0:00:43.7]} 24... g5 {[%clk 0:00:45.6]} 25. Qc2
{[%clk 0:00:40.9]} 25... Qg6 {[%clk 0:00:43.4]} 26. c5 {[%clk 0:00:39.8]} 26...
dxc5 {[%clk 0:00:35.3]} 27. dxc5 {[%clk 0:00:40.7]} 27... Bd5 {[%clk 0:00:35.3]}
28. Red1 {[%clk 0:00:34.2]} 28... Be6 {[%clk 0:00:28.3]} 29. c6 {[%clk
0:00:26.8]} 29... Ne5 {[%clk 0:00:27.4]} 30. Nd4 {[%clk 0:00:23.3]} 30... Bg8
{[%clk 0:00:24.3]} 31. Bxe5 {[%clk 0:00:20.7]} 31... Bxe5 {[%clk 0:00:23.9]} 32.
Bc4 {[%clk 0:00:21.4]} 32... f4 {[%clk 0:00:22.9]} 33. Bxg8+ {[%clk 0:00:20.9]}
33... Rxg8 {[%clk 0:00:22]} 34. Re1 {[%clk 0:00:15.9]} 34... g4 {[%clk
0:00:21.8]} 35. hxg4 {[%clk 0:00:11.2]} 35... h5 {[%clk 0:00:22.2]} 36. exf4
{[%clk 0:00:09.9]} 36... Bxd4 {[%clk 0:00:20]} 37. Rxe4 {[%clk 0:00:09.6]} 37...
Bg7 {[%clk 0:00:16.7]} 38. f5 {[%clk 0:00:07.7]} 38... Qg5 {[%clk 0:00:15.3]}
39. f6 {[%clk 0:00:02.4]} 39... Qg6 {[%clk 0:00:09.7]} 40. fxg7 {[%clk
0:00:01.9]} 40... Rxg7 {[%clk 0:00:10]} 41. Rce1 {[%clk 0:00:02]} 41... Rcg8
{[%clk 0:00:09.2]} 42. Qe2 {[%clk 0:00:02.1]} 42... hxg4 {[%clk 0:00:08.8]} 43.
Re6 {[%clk 0:00:02.5]} 43... Qg5 {[%clk 0:00:08.4]} 44. Qe4+ {[%clk 0:00:02.9]}
44... Kh8 {[%clk 0:00:08.3]} 45. Qe3 {[%clk 0:00:02.7]} 45... Qh5 {[%clk
0:00:06.6]} 46. Rh6+ {[%clk 0:00:02.4]} 46... Rh7 {[%clk 0:00:06.9]} 47. Rxh7+
{[%clk 0:00:02.7]} 47... Qxh7 {[%clk 0:00:06.2]} 48. Qe5+ {[%clk 0:00:03.6]}
48... Rg7 {[%clk 0:00:05.9]} 49. Qe8+ {[%clk 0:00:03.8]} 49... Rg8 {[%clk
0:00:05.9]} 50. Qe5+ {[%clk 0:00:04.1]} 50... Rg7 {[%clk 0:00:06.2]} 51. Qe8+
{[%clk 0:00:04.3]} 51... Rg8 {[%clk 0:00:06.4]} 52. Qe3 {[%clk 0:00:05.2]} 52...
Rg7 {[%clk 0:00:06.3]} 53. Qe4 {[%clk 0:00:05.7]} 53... Qh6 {[%clk 0:00:05.5]}
54. Qe8+ {[%clk 0:00:05.5]} 54... Rg8 {[%clk 0:00:05]} 55. Qe5+ {[%clk
0:00:05.4]} 55... Rg7 {[%clk 0:00:05.1]} 56. Qe3 {[%clk 0:00:05.5]} 56... Qh5
{[%clk 0:00:04.5]} 57. Rd1 {[%clk 0:00:05.7]} 57... Rh7 {[%clk 0:00:03.3]} 58.
Rd8+ {[%clk 0:00:05.9]} 58... Kg7 {[%clk 0:00:02.5]} 59. Qe7+ {[%clk 0:00:06.1]}
59... Qf7 {[%clk 0:00:01.6]} 60. Qxf7+ {[%clk 0:00:06.4]} 60... Kxf7 {[%clk
0:00:01.7]} 61. Rd7+ {[%clk 0:00:07.3]} 61... Kg6 {[%clk 0:00:01.1]} 62. Rxh7
{[%clk 0:00:08.2]} 62... Kxh7 {[%clk 0:00:01.3]} 63. Kh2 {[%clk 0:00:09.1]}
63... Kg6 {[%clk 0:00:01.9]} 64. Kg3 {[%clk 0:00:10]} 64... Kg5 {[%clk
0:00:02.5]} 65. f3 {[%clk 0:00:10.6]} 65... gxf3 {[%clk 0:00:01.7]} 66. Kxf3
{[%clk 0:00:11.5]} 66... Kf5 {[%clk 0:00:02.2]} 67. g4+ {[%clk 0:00:12.1]} 67...
Ke5 {[%clk 0:00:03.1]} 68. Kg3 {[%clk 0:00:11.8]} 68... Ke4 {[%clk 0:00:03]} 69.
Kh4 {[%clk 0:00:12]} 69... Kd4 {[%clk 0:00:03]} 70. g5 {[%clk 0:00:12.6]} 70...
Kc4 {[%clk 0:00:03.8]} 71. g6 {[%clk 0:00:13.2]} 71... Kb4 {[%clk 0:00:04.7]}
72. g7 {[%clk 0:00:14.1]} 72... Kxa4 {[%clk 0:00:05.3]} 73. g8=Q {[%clk
0:00:15]} 73... Kxb5 {[%clk 0:00:06]} 74. Qb3+ {[%clk 0:00:14]} 74... Kxc6
{[%clk 0:00:06.9]} 75. Kg4 {[%clk 0:00:14.6]} 75... b5 {[%clk 0:00:06.7]} 76.
Kf4 {[%clk 0:00:15]} 76... a4 {[%clk 0:00:07.6]} 77. Qb4 {[%clk 0:00:15.3]}
77... Kb6 {[%clk 0:00:08.5]} 78. Ke4 {[%clk 0:00:15.5]} 78... c5 {[%clk
0:00:09]} 79. Qb2 {[%clk 0:00:15.4]} 79... b4 {[%clk 0:00:09.1]} 80. Kd5 {[%clk
0:00:15.4]} 80... a3 {[%clk 0:00:08.3]} 81. Qb3 {[%clk 0:00:15.3]} 1-0

[Event "*** SCC Grand Prix: Titled Tuesday Blitz"]
[Site "Chess.com"]
[Date "2020.10.13"]
[Round "2"]
[White "azikom"]
[Black "karwowskikacper"]
[Result "1-0"]
[WhiteElo "2630"]
[BlackElo "2326"]
[TimeControl "180+1"]
[EndTime "10:18:57 PDT"]
[Termination "azikom won by resignation"]

1. e4 {[%clk 0:02:59.8]} 1... c5 {[%clk 0:02:59]} 2. Nc3 {[%clk 0:02:58.5]} 2...
Nc6 {[%clk 0:02:59.2]} 3. d3 {[%clk 0:02:57.8]} 3... d6 {[%clk 0:02:59.2]} 4. g3
{[%clk 0:02:57.6]} 4... g6 {[%clk 0:02:59.6]} 5. Bg2 {[%clk 0:02:58.4]} 5... Bg7
{[%clk 0:03:00.5]} 6. Be3 {[%clk 0:02:57.5]} 6... Rb8 {[%clk 0:02:53]} 7. Qd2
{[%clk 0:02:56.1]} 7... b5 {[%clk 0:02:52.8]} 8. Nge2 {[%clk 0:02:55.2]} 8... b4
{[%clk 0:02:49.2]} 9. Nd1 {[%clk 0:02:53.4]} 9... Nd4 {[%clk 0:02:49.5]} 10. O-O
{[%clk 0:02:49.8]} 10... e6 {[%clk 0:02:46.9]} 11. Nc1 {[%clk 0:02:47.5]} 11...
Ne7 {[%clk 0:01:59.4]} 12. c3 {[%clk 0:02:36.8]} 12... bxc3 {[%clk 0:02:00.3]}
13. bxc3 {[%clk 0:02:36.9]} 13... Ndc6 {[%clk 0:02:00.3]} 14. Bh6 {[%clk
0:02:36.8]} 14... Bf6 {[%clk 0:01:56.6]} 15. d4 {[%clk 0:02:24.6]} 15... cxd4
{[%clk 0:01:51]} 16. cxd4 {[%clk 0:02:24.5]} 16... Nxd4 {[%clk 0:01:43.3]} 17.
Nc3 {[%clk 0:02:19]} 17... Ba6 {[%clk 0:01:27.1]} 18. Rd1 {[%clk 0:02:16.1]}
18... Nec6 {[%clk 0:01:19.5]} 19. Nb3 {[%clk 0:02:13.4]} 19... Bc4 {[%clk
0:01:06.5]} 20. Nxd4 {[%clk 0:02:09.3]} 20... Nxd4 {[%clk 0:01:07.4]} 21. Rac1
{[%clk 0:02:08.5]} 21... e5 {[%clk 0:00:59.8]} 22. h4 {[%clk 0:02:06.1]} 22...
Qd7 {[%clk 0:00:41.8]} 23. Qe3 {[%clk 0:01:54.7]} 23... Qg4 {[%clk 0:00:38]} 24.
Re1 {[%clk 0:01:41.2]} 24... Be7 {[%clk 0:00:34.6]} 25. Bg7 {[%clk 0:00:55.1]}
25... Rg8 {[%clk 0:00:33.6]} 26. Bh6 {[%clk 0:00:54.7]} 26... f5 {[%clk
0:00:31.9]} 27. Nd5 {[%clk 0:00:50.8]} 27... Bxd5 {[%clk 0:00:31.3]} 28. exd5
{[%clk 0:00:50.4]} 28... Kf7 {[%clk 0:00:20.2]} 29. Rc7 {[%clk 0:00:49.2]} 29...
Rgc8 {[%clk 0:00:18.4]} 30. Rxa7 {[%clk 0:00:48]} 30... Nc2 {[%clk 0:00:18.3]}
31. Qg5 {[%clk 0:00:42.1]} 31... Qxg5 {[%clk 0:00:18.4]} 32. Bxg5 {[%clk
0:00:41.9]} 32... Nxe1 {[%clk 0:00:17.6]} 33. Rxe7+ {[%clk 0:00:42.2]} 33... Kf8
{[%clk 0:00:18]} 34. Rxh7 {[%clk 0:00:40.8]} 34... Nxg2 {[%clk 0:00:17.9]} 35.
Kxg2 {[%clk 0:00:41]} 35... Kg8 {[%clk 0:00:16.6]} 36. Rd7 {[%clk 0:00:40.7]}
36... Rb6 {[%clk 0:00:15.7]} 37. a4 {[%clk 0:00:39.9]} 37... Ra8 {[%clk
0:00:15.9]} 38. Bh6 {[%clk 0:00:32.2]} 38... Rxa4 {[%clk 0:00:11.9]} 39. Rg7+
{[%clk 0:00:31.1]} 39... Kh8 {[%clk 0:00:12.2]} 40. Rxg6 {[%clk 0:00:31.4]}
40... Kh7 {[%clk 0:00:12.5]} 41. Re6 {[%clk 0:00:30.5]} 41... Rd4 {[%clk
0:00:09.8]} 42. Bg5 {[%clk 0:00:30]} 42... Rxd5 {[%clk 0:00:09.9]} 43. h5 {[%clk
0:00:30.5]} 43... Rb7 {[%clk 0:00:06.6]} 44. Re8 {[%clk 0:00:30.1]} 44... Rf7
{[%clk 0:00:04.8]} 45. Re6 {[%clk 0:00:29.2]} 45... f4 {[%clk 0:00:03.2]} 46. g4
{[%clk 0:00:27.5]} 46... f3+ {[%clk 0:00:02.9]} 47. Kg3 {[%clk 0:00:27.1]} 47...
Rd1 {[%clk 0:00:02.4]} 48. Rh6+ {[%clk 0:00:27]} 48... Kg7 {[%clk 0:00:02.5]}
49. Rg6+ {[%clk 0:00:26.8]} 49... Kh7 {[%clk 0:00:02.6]} 50. Bf6 {[%clk
0:00:27]} 50... Rg1+ {[%clk 0:00:02]} 51. Kxf3 {[%clk 0:00:26.4]} 51... d5
{[%clk 0:00:01.7]} 52. g5 {[%clk 0:00:23.6]} 52... e4+ {[%clk 0:00:02.2]} 53.
Kf4 {[%clk 0:00:22.4]} 53... Rxf6+ {[%clk 0:00:02.2]} 54. Rxf6 {[%clk
0:00:22.3]} 54... Rf1 {[%clk 0:00:02.8]} 55. Ke3 {[%clk 0:00:21.8]} 55... Kg7
{[%clk 0:00:02.7]} 56. h6+ {[%clk 0:00:21.7]} 56... Kh7 {[%clk 0:00:03.2]} 57.
Rf7+ {[%clk 0:00:22]} 57... Kg6 {[%clk 0:00:03.7]} 58. Rg7+ {[%clk 0:00:21.8]}
58... Kf5 {[%clk 0:00:04.2]} 59. h7 {[%clk 0:00:22.2]} 59... Rh1 {[%clk
0:00:04.7]} 60. g6 {[%clk 0:00:22.1]} 60... Ke5 {[%clk 0:00:04.9]} 61. Rg8
{[%clk 0:00:21.7]} 61... d4+ {[%clk 0:00:05.4]} 62. Kd2 {[%clk 0:00:20.6]} 62...
e3+ {[%clk 0:00:02.1]} 63. fxe3 {[%clk 0:00:20.5]} 63... dxe3+ {[%clk 0:00:03]}
64. Kxe3 {[%clk 0:00:20.4]} 64... Rh3+ {[%clk 0:00:03.6]} 65. Kf2 {[%clk
0:00:20.7]} 65... Kf6 {[%clk 0:00:04]} 66. Kg2 {[%clk 0:00:19.7]} 66... Rh6
{[%clk 0:00:02]} 67. h8=Q+ {[%clk 0:00:19.6]} 67... Rxh8 {[%clk 0:00:02.9]} 68.
Rxh8 {[%clk 0:00:18.8]} 68... Kxg6 {[%clk 0:00:03.8]} 69. Rh4 {[%clk 0:00:18.6]}
1-0

[Event "*** SCC Grand Prix: Titled Tuesday Blitz"]
[Site "Chess.com"]
[Date "2020.10.13"]
[Round "2"]
[White "alexgo05"]
[Black "Anton_Demchenko"]
[Result "1-0"]
[WhiteElo "2450"]
[BlackElo "2803"]
[TimeControl "180+1"]
[EndTime "10:19:04 PDT"]
[Termination "alexgo05 won by resignation"]

1. e4 {[%clk 0:03:00.9]} 1... c6 {[%clk 0:02:59.4]} 2. Nc3 {[%clk 0:03:00.2]}
2... d5 {[%clk 0:02:59.5]} 3. Nf3 {[%clk 0:02:59.8]} 3... dxe4 {[%clk
0:02:59.5]} 4. Nxe4 {[%clk 0:03:00.7]} 4... Nf6 {[%clk 0:03:00]} 5. Qe2 {[%clk
0:03:00.4]} 5... Nxe4 {[%clk 0:03:00.3]} 6. Qxe4 {[%clk 0:03:01.3]} 6... Nd7
{[%clk 0:03:01.1]} 7. Bc4 {[%clk 0:03:01.1]} 7... Nf6 {[%clk 0:03:01.4]} 8. Ne5
{[%clk 0:03:01.6]} 8... e6 {[%clk 0:03:02.1]} 9. Qe2 {[%clk 0:03:01.9]} 9... b5
{[%clk 0:02:41.6]} 10. Bd3 {[%clk 0:03:01]} 10... Bb7 {[%clk 0:02:37.1]} 11. O-O
{[%clk 0:02:48.1]} 11... Qc7 {[%clk 0:02:34.9]} 12. b3 {[%clk 0:02:47.7]} 12...
Nd5 {[%clk 0:02:32.9]} 13. Bb2 {[%clk 0:02:19.9]} 13... Be7 {[%clk 0:02:28.2]}
14. Qe4 {[%clk 0:01:56.4]} 14... a6 {[%clk 0:02:11.4]} 15. a4 {[%clk 0:01:54.7]}
15... Nf6 {[%clk 0:01:54.1]} 16. Qe2 {[%clk 0:01:49]} 16... O-O {[%clk
0:01:52.3]} 17. Ng4 {[%clk 0:01:39.4]} 17... Qf4 {[%clk 0:01:38.6]} 18. Nxf6+
{[%clk 0:01:27.9]} 18... Bxf6 {[%clk 0:01:39.5]} 19. Bxf6 {[%clk 0:01:12.5]}
19... Qxf6 {[%clk 0:01:39.9]} 20. Be4 {[%clk 0:01:02]} 20... g6 {[%clk
0:01:38.2]} 21. d3 {[%clk 0:01:00.8]} 21... Rfd8 {[%clk 0:01:33.7]} 22. Rfe1
{[%clk 0:00:58.6]} 22... Qc3 {[%clk 0:01:22.2]} 23. Bf3 {[%clk 0:00:50.2]} 23...
Rd4 {[%clk 0:01:12.2]} 24. axb5 {[%clk 0:00:41.6]} 24... axb5 {[%clk 0:01:11.8]}
25. Rxa8+ {[%clk 0:00:42.2]} 25... Bxa8 {[%clk 0:01:12.6]} 26. Qe5 {[%clk
0:00:36.9]} 26... b4 {[%clk 0:01:07.4]} 27. Rf1 {[%clk 0:00:26.6]} 27... Rd8
{[%clk 0:01:03.8]} 28. Qxc3 {[%clk 0:00:27.1]} 28... bxc3 {[%clk 0:01:03.3]} 29.
Ra1 {[%clk 0:00:27.6]} 29... Kf8 {[%clk 0:00:59]} 30. Kf1 {[%clk 0:00:26.4]}
30... Bb7 {[%clk 0:00:53]} 31. Ra4 {[%clk 0:00:26.6]} 31... Ke7 {[%clk
0:00:52.9]} 32. Rc4 {[%clk 0:00:26.7]} 32... Kd6 {[%clk 0:00:51.3]} 33. Rxc3
{[%clk 0:00:23.3]} 33... Ra8 {[%clk 0:00:51.6]} 34. Ke2 {[%clk 0:00:23.1]} 34...
Ra1 {[%clk 0:00:49.5]} 35. Rc4 {[%clk 0:00:23.2]} 35... e5 {[%clk 0:00:34.3]}
36. Ra4 {[%clk 0:00:23.2]} 36... Rh1 {[%clk 0:00:28.7]} 37. Ra7 {[%clk
0:00:21.4]} 37... Kc7 {[%clk 0:00:28.3]} 38. h3 {[%clk 0:00:20.5]} 38... f5
{[%clk 0:00:28.9]} 39. Ra5 {[%clk 0:00:17.8]} 39... Kd6 {[%clk 0:00:27.3]} 40.
Ra7 {[%clk 0:00:18]} 40... Kc7 {[%clk 0:00:12.1]} 41. Ra5 {[%clk 0:00:17]} 41...
Rc1 {[%clk 0:00:07.6]} 42. Kd2 {[%clk 0:00:16.2]} 42... Rf1 {[%clk 0:00:08.2]}
43. Rxe5 {[%clk 0:00:15.1]} 43... Kd6 {[%clk 0:00:06.3]} 44. Re2 {[%clk
0:00:14.8]} 44... Ba6 {[%clk 0:00:05.1]} 45. Kc3 {[%clk 0:00:15.1]} 45... Rc1
{[%clk 0:00:04.8]} 46. Rd2 {[%clk 0:00:15.2]} 46... Bb7 {[%clk 0:00:04.6]} 47.
b4 {[%clk 0:00:15.1]} 47... Ba6 {[%clk 0:00:04.4]} 48. Kd4 {[%clk 0:00:15.1]}
48... Bc8 {[%clk 0:00:03.7]} 49. c4 {[%clk 0:00:15.1]} 49... Rb1 {[%clk
0:00:03.9]} 50. Kc3 {[%clk 0:00:12.2]} 50... Be6 {[%clk 0:00:03.6]} 51. Rb2
{[%clk 0:00:11.4]} 51... Rc1+ {[%clk 0:00:04.2]} 52. Rc2 {[%clk 0:00:11.7]}
52... Rb1 {[%clk 0:00:04.5]} 53. d4 {[%clk 0:00:10.2]} 53... f4 {[%clk
0:00:04.2]} 54. d5 {[%clk 0:00:09.7]} 54... cxd5 {[%clk 0:00:03.3]} 55. Bxd5
{[%clk 0:00:09.9]} 55... Bf5 {[%clk 0:00:03.7]} 56. Rd2 {[%clk 0:00:09.7]} 56...
Ke5 {[%clk 0:00:04.1]} 57. Re2+ {[%clk 0:00:09.5]} 57... Kd6 {[%clk 0:00:04.1]}
58. Rd2 {[%clk 0:00:09.8]} 58... Ke5 {[%clk 0:00:04.5]} 59. c5 {[%clk
0:00:10.3]} 59... Rc1+ {[%clk 0:00:04]} 60. Kb3 {[%clk 0:00:10.7]} 60... Rb1+
{[%clk 0:00:04.1]} 61. Kc4 {[%clk 0:00:10]} 61... Rc1+ {[%clk 0:00:02.7]} 62.
Kb5 {[%clk 0:00:10.3]} 62... Rb1 {[%clk 0:00:03.6]} 63. c6 {[%clk 0:00:09.4]}
63... Rc1 {[%clk 0:00:03.3]} 64. Bc4 {[%clk 0:00:09.3]} 64... g5 {[%clk
0:00:03.2]} 65. Kc5 {[%clk 0:00:09.2]} 65... Kf6 {[%clk 0:00:03.5]} 66. b5
{[%clk 0:00:09.7]} 66... Be6 {[%clk 0:00:03.9]} 67. Rd6 {[%clk 0:00:09]} 67...
Rxc4+ {[%clk 0:00:03.3]} 68. Kb6 {[%clk 0:00:09.5]} 68... Rb4 {[%clk 0:00:04.2]}
69. c7 {[%clk 0:00:09.2]} 69... Rc4 {[%clk 0:00:04.6]} 70. Kb7 {[%clk
0:00:09.1]} 70... Ke5 {[%clk 0:00:04.5]} 71. Rxe6+ {[%clk 0:00:09.4]} 71... Kxe6
{[%clk 0:00:04.9]} 72. c8=Q+ {[%clk 0:00:10.3]} 72... Rxc8 {[%clk 0:00:05]} 73.
Kxc8 {[%clk 0:00:11.2]} 73... h5 {[%clk 0:00:05.1]} 74. b6 {[%clk 0:00:11.5]}
74... g4 {[%clk 0:00:06]} 75. hxg4 {[%clk 0:00:10.9]} 75... f3 {[%clk
0:00:06.9]} 76. g3 {[%clk 0:00:10.1]} 76... hxg4 {[%clk 0:00:07.2]} 77. b7
{[%clk 0:00:10.2]} 77... Ke5 {[%clk 0:00:08.1]} 78. b8=Q+ {[%clk 0:00:10.4]}
78... Kd4 {[%clk 0:00:09]} 79. Qf4+ {[%clk 0:00:10.7]} 1-0

[Event "*** SCC Grand Prix: Titled Tuesday Blitz"]
[Site "Chess.com"]
[Date "2020.10.13"]
[Round "2"]
[White "Guenplen"]
[Black "Chesswizard_2007"]
[Result "1-0"]
[WhiteElo "2852"]
[BlackElo "2565"]
[TimeControl "180+1"]
[EndTime "10:19:06 PDT"]
[Termination "Guenplen won by resignation"]

1. d4 {[%clk 0:03:00.9]} 1... a5 {[%clk 0:02:58.4]} 2. e4 {[%clk 0:02:59.9]}
2... b6 {[%clk 0:02:55.9]} 3. Nf3 {[%clk 0:02:58.3]} 3... Ba6 {[%clk 0:02:56.8]}
4. c4 {[%clk 0:02:56.2]} 4... Nc6 {[%clk 0:02:54.2]} 5. d5 {[%clk 0:02:54.1]}
5... Nb8 {[%clk 0:02:54.1]} 6. Nc3 {[%clk 0:02:52.6]} 6... d6 {[%clk 0:02:54.6]}
7. Nd4 {[%clk 0:02:41.8]} 7... Bb7 {[%clk 0:02:51.5]} 8. Be3 {[%clk 0:02:39.7]}
8... g6 {[%clk 0:02:51.6]} 9. h4 {[%clk 0:02:39.2]} 9... h5 {[%clk 0:02:51.4]}
10. Qd2 {[%clk 0:02:36.5]} 10... Nf6 {[%clk 0:02:49.7]} 11. f3 {[%clk
0:02:36.4]} 11... Bg7 {[%clk 0:02:46.8]} 12. Be2 {[%clk 0:02:35.1]} 12... Nbd7
{[%clk 0:02:46.3]} 13. O-O-O {[%clk 0:02:31.7]} 13... Nc5 {[%clk 0:02:45.2]} 14.
Kb1 {[%clk 0:02:29.8]} 14... Qd7 {[%clk 0:02:44.2]} 15. Ndb5 {[%clk 0:02:22.4]}
15... Rd8 {[%clk 0:02:28.1]} 16. g3 {[%clk 0:02:19.9]} 16... e5 {[%clk
0:02:24.6]} 17. Bf1 {[%clk 0:02:08.4]} 17... Qe7 {[%clk 0:02:22.6]} 18. Bh3
{[%clk 0:02:04.8]} 18... Bc8 {[%clk 0:02:22.7]} 19. Bxc8 {[%clk 0:02:04.1]}
19... Rxc8 {[%clk 0:02:23.6]} 20. Na7 {[%clk 0:02:04.6]} 20... Ra8 {[%clk
0:02:22.7]} 21. Nc6 {[%clk 0:02:04.6]} 21... Qd7 {[%clk 0:02:20]} 22. Qh2 {[%clk
0:02:00.3]} 22... Ng8 {[%clk 0:02:17]} 23. Qh3 {[%clk 0:01:52.9]} 23... Qxh3
{[%clk 0:02:14.7]} 24. Rxh3 {[%clk 0:01:53.8]} 24... Ne7 {[%clk 0:02:14.6]} 25.
Nb5 {[%clk 0:01:50.5]} 25... Na6 {[%clk 0:02:08.5]} 26. Nxe7 {[%clk 0:01:37.7]}
26... Kxe7 {[%clk 0:02:09.4]} 27. Rh2 {[%clk 0:01:38]} 27... f5 {[%clk
0:02:07.1]} 28. exf5 {[%clk 0:01:29.9]} 28... gxf5 {[%clk 0:02:08]} 29. Bg5+
{[%clk 0:01:30.5]} 29... Kf7 {[%clk 0:01:58.7]} 30. Rf2 {[%clk 0:01:29.3]} 30...
Kg6 {[%clk 0:01:57]} 31. Kc2 {[%clk 0:01:26.3]} 31... Rhf8 {[%clk 0:01:56.3]}
32. a3 {[%clk 0:01:24.5]} 32... a4 {[%clk 0:01:53.8]} 33. Nc3 {[%clk 0:01:16.4]}
33... Bh6 {[%clk 0:01:52.3]} 34. Bxh6 {[%clk 0:01:04]} 34... Kxh6 {[%clk
0:01:53.2]} 35. Nxa4 {[%clk 0:01:03.7]} 35... Rg8 {[%clk 0:01:50.4]} 36. Rg1
{[%clk 0:01:00.9]} 36... Rg7 {[%clk 0:01:42.5]} 37. Nc3 {[%clk 0:00:58.9]} 37...
Rag8 {[%clk 0:01:40.6]} 38. Rfg2 {[%clk 0:00:58.1]} 38... Nc5 {[%clk 0:01:32.4]}
39. b4 {[%clk 0:00:55.7]} 39... Nd7 {[%clk 0:01:32.1]} 40. Kb3 {[%clk
0:00:54.4]} 40... Nf6 {[%clk 0:01:32.2]} 41. a4 {[%clk 0:00:45]} 41... e4 {[%clk
0:01:17.4]} 42. fxe4 {[%clk 0:00:40.2]} 42... Nxe4 {[%clk 0:01:18.3]} 43. Nxe4
{[%clk 0:00:39.2]} 43... fxe4 {[%clk 0:01:19.2]} 44. Kc3 {[%clk 0:00:38.3]}
44... Rf7 {[%clk 0:01:18.2]} 45. g4 {[%clk 0:00:22.4]} 45... Rf3+ {[%clk
0:01:04.9]} 46. Kd2 {[%clk 0:00:20.1]} 46... Rd3+ {[%clk 0:01:00.5]} 47. Ke2
{[%clk 0:00:19.6]} 47... hxg4 {[%clk 0:00:59.5]} 48. Rxg4 {[%clk 0:00:19.5]}
48... Rxg4 {[%clk 0:01:00.1]} 49. Rxg4 {[%clk 0:00:20.3]} 49... Rd4 {[%clk
0:01:01]} 50. Ke3 {[%clk 0:00:20.1]} 50... Rxc4 {[%clk 0:01:01.5]} 51. Rxe4
{[%clk 0:00:20.3]} 51... Rc3+ {[%clk 0:01:00.6]} 52. Kd4 {[%clk 0:00:17.9]}
52... Ra3 {[%clk 0:01:01]} 53. Kc4 {[%clk 0:00:15.1]} 53... Rxa4 {[%clk
0:00:54.6]} 54. Kb5 {[%clk 0:00:15]} 54... Ra7 {[%clk 0:00:50.3]} 55. Kc6 {[%clk
0:00:14.2]} 55... Kh5 {[%clk 0:00:50.5]} 56. b5 {[%clk 0:00:14.5]} 56... Ra5
{[%clk 0:00:47.3]} 57. Rb4 {[%clk 0:00:11]} 57... Ra7 {[%clk 0:00:43.6]} 58. Rd4
{[%clk 0:00:09.9]} 58... Ra5 {[%clk 0:00:43]} 59. Re4 {[%clk 0:00:10.2]} 59...
Ra7 {[%clk 0:00:34.9]} 60. Re7 {[%clk 0:00:10]} 60... Kxh4 {[%clk 0:00:35.8]}
61. Rxc7 {[%clk 0:00:10]} 61... Ra3 {[%clk 0:00:33.5]} 62. Kxd6 {[%clk
0:00:09.5]} 62... Kg5 {[%clk 0:00:34]} 63. Kc6 {[%clk 0:00:09.2]} 63... Kf6
{[%clk 0:00:34.1]} 64. Kxb6 {[%clk 0:00:09.5]} 64... Ke5 {[%clk 0:00:33.6]} 65.
Rd7 {[%clk 0:00:07.2]} 65... Rb3 {[%clk 0:00:30.5]} 66. Kc6 {[%clk 0:00:07.5]}
66... Rc3+ {[%clk 0:00:30.1]} 67. Kb7 {[%clk 0:00:07.7]} 67... Rb3 {[%clk
0:00:30.7]} 68. b6 {[%clk 0:00:08.1]} 68... Rb1 {[%clk 0:00:30.6]} 69. Kc7
{[%clk 0:00:07.7]} 69... Rc1+ {[%clk 0:00:30.6]} 70. Kb8 {[%clk 0:00:08]} 70...
Rb1 {[%clk 0:00:31.3]} 71. b7 {[%clk 0:00:08.4]} 71... Rb4 {[%clk 0:00:28.1]}
72. Kc8 {[%clk 0:00:08.2]} 72... Rc4+ {[%clk 0:00:26.2]} 73. Rc7 {[%clk
0:00:08.4]} 73... Rh4 {[%clk 0:00:26.1]} 74. b8=Q {[%clk 0:00:08.5]} 74... Kf6
{[%clk 0:00:26.2]} 75. Qb6+ {[%clk 0:00:07.7]} 75... Kg5 {[%clk 0:00:26.2]} 76.
d6 {[%clk 0:00:07.1]} 76... Rh8+ {[%clk 0:00:25.6]} 77. Kb7 {[%clk 0:00:07.2]}
77... Rg8 {[%clk 0:00:22.2]} 78. d7 {[%clk 0:00:07.4]} 78... Kh5 {[%clk
0:00:22]} 79. Rc5+ {[%clk 0:00:07.2]} 79... Kh4 {[%clk 0:00:21.4]} 80. Qb4+
{[%clk 0:00:07.1]} 80... Kh3 {[%clk 0:00:22.2]} 81. Rc3+ {[%clk 0:00:07.1]}
81... Kh2 {[%clk 0:00:22.8]} 82. Qb2+ {[%clk 0:00:07.2]} 82... Rg2 {[%clk
0:00:23.5]} 83. Qxg2+ {[%clk 0:00:07]} 83... Kxg2 {[%clk 0:00:24.4]} 84. d8=Q
{[%clk 0:00:06.9]} 1-0